[Event "Campeonato de Aragón Individual Absoluto 2022"]
[Site "Zaragoza, Spain"]
[Date "2022.08.28"]
[Round "2.2"]
[White "Vicente Gomez, Lorien"]
[Black "Glavina, Pablo"]
[Result "0-1"]
[TimeControl "90 min + 30 sg"]
[WhiteElo "1732"]
[BlackElo "2394"]

1. e4 {[%clk 01:30:57]} {[%emt 00:00:01]} c5 {[%clk 01:30:57]} {[%emt
00:00:03]} 2. c3 {[%clk 01:31:19]} {[%emt 00:00:08]} d5 {[%clk 01:31:22]}
{[%emt 00:00:05]} 3. exd5 {[%clk 01:31:43]} {[%emt 00:00:06]} Qxd5 {[%clk
01:31:48]} {[%emt 00:00:04]} 4. Nf3 {[%clk 01:32:07]} {[%emt 00:00:06]} g6
{[%clk 01:32:13]} {[%emt 00:00:05]} 5. d4 {[%clk 01:32:26]} {[%emt 00:00:11]}
Bg7 {[%clk 01:32:39]} {[%emt 00:00:04]} 6. Be2 {[%clk 01:32:15]} {[%emt
00:00:41]} Nf6 {[%clk 01:32:59]} {[%emt 00:00:10]} 7. h3 {[%clk 01:32:01]}
{[%emt 00:00:44]} O-O {[%clk 01:33:23]} {[%emt 00:00:06]} 8. O-O {[%clk
01:32:24]} {[%emt 00:00:07]} Nc6 {[%clk 01:32:47]} {[%emt 00:01:06]} 9. Be3
{[%clk 01:32:43]} {[%emt 00:00:11]} cxd4 {[%clk 01:32:47]} {[%emt 00:00:31]} 10.
Nxd4 {[%clk 01:31:33]} {[%emt 00:01:40]} e5 {[%clk 01:32:44]} {[%emt 00:00:32]}
11. Nxc6 {[%clk 01:31:50]} {[%emt 00:00:13]} Qxc6 {[%clk 01:33:10]} {[%emt
00:00:04]} 12. Qc1 {[%clk 01:27:19]} {[%emt 00:05:01]} b5 {[%clk 01:31:22]}
{[%emt 00:02:18]} 13. Rd1 {[%clk 01:24:06]} {[%emt 00:03:43]} Bb7 {[%clk
01:31:30]} {[%emt 00:00:21]} 14. Bf1 {[%clk 01:24:28]} {[%emt 00:00:07]} Nd5
{[%clk 01:31:31]} {[%emt 00:00:30]} 15. Na3 {[%clk 01:21:45]} {[%emt 00:03:13]}
a6 {[%clk 01:26:00]} {[%emt 00:06:01]} 16. c4 {[%clk 01:22:07]} {[%emt
00:00:08]} Nxe3 {[%clk 01:26:08]} {[%emt 00:00:22]} 17. Qxe3 {[%clk 01:22:06]}
{[%emt 00:00:30]} b4 {[%clk 01:26:09]} {[%emt 00:00:30]} 18. Nc2 {[%clk
01:21:57]} {[%emt 00:00:39]} a5 {[%clk 01:26:35]} {[%emt 00:00:05]} 19. Rd2
{[%clk 01:16:01]} {[%emt 00:06:25]} f5 {[%clk 01:26:49]} {[%emt 00:00:17]} 20.
Rad1 {[%clk 01:09:27]} {[%emt 00:07:02]} f4 {[%clk 01:27:14]} {[%emt 00:00:06]}
21. Qd3 {[%clk 01:09:40]} {[%emt 00:00:17]} e4 {[%clk 01:27:04]} {[%emt
00:00:40]} 22. Qd5+ {[%clk 01:07:47]} {[%emt 00:02:24]} Qxd5 {[%clk 01:27:28]}
{[%emt 00:00:07]} 23. cxd5 {[%clk 01:04:47]} {[%emt 00:03:29]} Bxb2 {[%clk
01:27:53]} {[%emt 00:00:05]} 24. Re2 {[%clk 00:58:10]} {[%emt 00:07:07]} Rae8
{[%clk 01:26:44]} {[%emt 00:01:39]} 25. Nxb4 {[%clk 00:56:29]} {[%emt
00:02:11]} Bc3 {[%clk 01:27:06]} {[%emt 00:00:07]} 26. Nc6 {[%clk 00:55:26]}
{[%emt 00:01:34]} e3 {[%clk 01:27:31]} {[%emt 00:00:05]} 27. fxe3 {[%clk
00:53:39]} {[%emt 00:02:18]} fxe3 {[%clk 01:27:56]} {[%emt 00:00:05]} 28. Ne7+
{[%clk 00:26:56]} {[%emt 00:27:13]} Rxe7 {[%clk 01:28:05]} {[%emt 00:00:20]} 29.
d6 {[%clk 00:27:21]} {[%emt 00:00:06]} Ref7 {[%clk 01:26:37]} {[%emt 00:01:58]}
30. Rc2 {[%clk 00:22:17]} {[%emt 00:05:34]} Rxf1+ {[%clk 01:26:20]} {[%emt
00:00:47]} 31. Rxf1 {[%clk 00:22:19]} {[%emt 00:00:28]} Rxf1+ {[%clk 01:26:44]}
{[%emt 00:00:05]} 32. Kxf1 {[%clk 00:22:21]} {[%emt 00:00:27]} Ba6+ {[%clk
01:27:11]} {[%emt 00:00:04]} 0-1

[Event "Campeonato de Aragón Individual Absoluto 2022"]
[Site "Zaragoza, Spain"]
[Date "2022.08.28"]
[Round "2.3"]
[White "Quintin Navarro, Alberto"]
[Black "Perez Puyal, Jose Joaquin"]
[Result "1-0"]
[TimeControl "90 min + 30 sg"]
[WhiteElo "2372"]
[BlackElo "1723"]

1. e4 {[%clk 01:30:58]} {[%emt 00:00:01]} d5 {[%clk 01:30:47]} {[%emt
00:00:13]} 2. exd5 {[%clk 01:31:22]} {[%emt 00:00:06]} Nf6 {[%clk 01:31:04]}
{[%emt 00:00:13]} 3. Bb5+ {[%clk 01:31:36]} {[%emt 00:00:17]} Nbd7 {[%clk
01:30:06]} {[%emt 00:01:28]} 4. d4 {[%clk 01:30:34]} {[%emt 00:01:32]} a6
{[%clk 01:30:10]} {[%emt 00:00:26]} 5. Bd3 {[%clk 01:30:08]} {[%emt 00:00:55]}
Nxd5 {[%clk 01:29:24]} {[%emt 00:01:16]} 6. Nf3 {[%clk 01:30:11]} {[%emt
00:00:28]} N7f6 {[%clk 01:27:59]} {[%emt 00:01:55]} 7. c4 {[%clk 01:28:40]}
{[%emt 00:02:01]} Nb6 {[%clk 01:26:16]} {[%emt 00:02:13]} 8. h3 {[%clk
01:28:14]} {[%emt 00:00:56]} e6 {[%clk 01:25:38]} {[%emt 00:01:09]} 9. O-O
{[%clk 01:26:50]} {[%emt 00:01:54]} Be7 {[%clk 01:25:52]} {[%emt 00:00:16]} 10.
Nc3 {[%clk 01:26:14]} {[%emt 00:01:06]} O-O {[%clk 01:25:44]} {[%emt 00:00:37]}
11. Qe2 {[%clk 01:22:07]} {[%emt 00:04:38]} Bd7 {[%clk 01:25:13]} {[%emt
00:01:01]} 12. Rd1 {[%clk 01:19:34]} {[%emt 00:03:03]} Nc8 {[%clk 01:20:24]}
{[%emt 00:05:19]} 13. Bg5 {[%clk 01:17:58]} {[%emt 00:02:06]} Nd6 {[%clk
01:16:29]} {[%emt 00:04:25]} 14. Rac1 {[%clk 01:12:41]} {[%emt 00:05:47]} Bc6
{[%clk 01:11:28]} {[%emt 00:05:32]} 15. Ne5 {[%clk 01:12:07]} {[%emt 00:01:03]}
Qe8 {[%clk 01:10:42]} {[%emt 00:01:16]} 16. Bb1 {[%clk 01:07:11]} {[%emt
00:05:27]} Nd7 {[%clk 00:56:41]} {[%emt 00:14:30]} 17. Qd3 {[%clk 01:02:43]}
{[%emt 00:04:58]} f5 {[%clk 00:52:33]} {[%emt 00:04:38]} 18. Bxe7 {[%clk
01:02:59]} {[%emt 00:00:14]} Qxe7 {[%clk 00:52:14]} {[%emt 00:00:49]} 19. Nxc6
{[%clk 01:03:08]} {[%emt 00:00:21]} bxc6 {[%clk 00:52:27]} {[%emt 00:00:17]} 20.
Re1 {[%clk 01:00:53]} {[%emt 00:02:44]} Qf7 {[%clk 00:51:05]} {[%emt 00:01:51]}
21. Bc2 {[%clk 00:54:38]} {[%emt 00:06:46]} Nf6 {[%clk 00:44:34]} {[%emt
00:07:01]} 22. Bb3 {[%clk 00:51:12]} {[%emt 00:03:56]} Nb7 {[%clk 00:39:42]}
{[%emt 00:05:21]} 23. Re5 {[%clk 00:43:07]} {[%emt 00:08:35]} Kh8 {[%clk
00:32:46]} {[%emt 00:07:25]} 24. Qe2 {[%clk 00:40:01]} {[%emt 00:03:37]} Rae8
{[%clk 00:26:23]} {[%emt 00:06:53]} 25. c5 {[%clk 00:38:40]} {[%emt 00:01:51]}
Qd7 {[%clk 00:24:02]} {[%emt 00:02:51]} 26. Rd1 {[%clk 00:38:17]} {[%emt
00:00:53]} Nd5 {[%clk 00:23:32]} {[%emt 00:01:00]} 27. Qxa6 {[%clk 00:38:11]}
{[%emt 00:00:37]} Nd8 {[%clk 00:22:14]} {[%emt 00:01:47]} 28. Nxd5 {[%clk
00:35:39]} {[%emt 00:03:02]} exd5 {[%clk 00:22:10]} {[%emt 00:00:34]} 29. Rde1
{[%clk 00:35:31]} {[%emt 00:00:38]} Rxe5 {[%clk 00:18:41]} {[%emt 00:03:59]} 30.
Rxe5 {[%clk 00:35:50]} {[%emt 00:00:11]} Nf7 {[%clk 00:18:44]} {[%emt
00:00:26]} 31. Re2 {[%clk 00:35:37]} {[%emt 00:00:43]} Re8 {[%clk 00:16:53]}
{[%emt 00:02:21]} 32. Ba4 {[%clk 00:31:11]} {[%emt 00:04:57]} Rxe2 {[%clk
00:15:45]} {[%emt 00:01:37]} 33. Qxe2 {[%clk 00:31:36]} {[%emt 00:00:06]} h6
{[%clk 00:14:16]} {[%emt 00:01:58]} 34. Bc2 {[%clk 00:31:22]} {[%emt 00:00:44]}
g6 {[%clk 00:13:09]} {[%emt 00:01:36]} 35. a4 {[%clk 00:31:31]} {[%emt
00:00:23]} Qd8 {[%clk 00:12:24]} {[%emt 00:01:14]} 36. a5 {[%clk 00:31:33]}
{[%emt 00:00:29]} Qb8 {[%clk 00:11:40]} {[%emt 00:01:13]} 37. Ba4 {[%clk
00:29:49]} {[%emt 00:02:14]} Qb4 {[%clk 00:10:42]} {[%emt 00:01:28]} 38. Bxc6
{[%clk 00:29:41]} {[%emt 00:00:38]} Qxd4 {[%clk 00:10:35]} {[%emt 00:00:36]} 39.
Qe3 {[%clk 00:28:07]} {[%emt 00:02:04]} Qxb2 {[%clk 00:09:19]} {[%emt
00:01:46]} 40. Bxd5 {[%clk 00:28:05]} {[%emt 00:00:32]} Kg7 {[%clk 00:08:29]}
{[%emt 00:01:19]} 41. Kh2 {[%clk 00:26:20]} {[%emt 00:02:16]} Qb8 {[%clk
00:04:48]} {[%emt 00:04:11]} 42. g3 {[%clk 00:24:03]} {[%emt 00:02:47]} Qb2
{[%clk 00:02:42]} {[%emt 00:02:35]} 43. a6 {[%clk 00:24:10]} {[%emt 00:00:24]}
1-0

[Event "Campeonato de Aragón Individual Absoluto 2022"]
[Site "Zaragoza, Spain"]
[Date "2022.08.28"]
[Round "2.4"]
[White "Lorente Melcon, Nicolas"]
[Black "Vela Frago, Alberto"]
[Result "0-1"]
[TimeControl "90 min + 30 sg"]
[WhiteElo "1685"]
[BlackElo "2232"]

1. e4 {[%clk 01:21:51]} {[%emt 00:09:08]} c5 {[%clk 01:30:49]} {[%emt
00:00:11]} 2. Nc3 {[%clk 01:21:50]} {[%emt 00:00:30]} g6 {[%clk 01:30:49]}
{[%emt 00:00:31]} 3. Bc4 {[%clk 01:21:57]} {[%emt 00:00:23]} Bg7 {[%clk
01:31:03]} {[%emt 00:00:17]} 4. Qf3 {[%clk 01:22:17]} {[%emt 00:00:09]} e6
{[%clk 01:31:03]} {[%emt 00:00:31]} 5. Nb5 {[%clk 01:22:38]} {[%emt 00:00:09]}
d6 {[%clk 01:30:57]} {[%emt 00:00:36]} 6. Qg3 {[%clk 01:22:59]} {[%emt
00:00:09]} Ke7 {[%clk 01:30:46]} {[%emt 00:00:40]} 7. a4 {[%clk 01:23:08]}
{[%emt 00:00:21]} a6 {[%clk 01:30:53]} {[%emt 00:00:23]} 8. Nc3 {[%clk
01:23:35]} {[%emt 00:00:03]} Nc6 {[%clk 01:30:56]} {[%emt 00:00:27]} 9. Nge2
{[%clk 01:22:34]} {[%emt 00:01:31]} Nb4 {[%clk 01:25:53]} {[%emt 00:05:34]} 10.
Bb3 {[%clk 01:17:11]} {[%emt 00:05:52]} c4 {[%clk 01:25:10]} {[%emt 00:01:13]}
11. Na2 {[%clk 01:17:29]} {[%emt 00:00:12]} Qa5 {[%clk 01:18:43]} {[%emt
00:06:57]} 12. Nxb4 {[%clk 01:10:50]} {[%emt 00:07:10]} Qxb4 {[%clk 01:19:02]}
{[%emt 00:00:11]} 13. Ba2 {[%clk 01:06:41]} {[%emt 00:04:38]} Qxa4 {[%clk
01:19:21]} {[%emt 00:00:12]} 14. c3 {[%clk 01:06:43]} {[%emt 00:00:28]} Nf6
{[%clk 01:17:12]} {[%emt 00:02:39]} 15. f3 {[%clk 01:03:12]} {[%emt 00:04:01]}
Nd7 {[%clk 01:14:39]} {[%emt 00:03:04]} 16. d4 {[%clk 00:43:40]} {[%emt
00:20:01]} cxd3 {[%clk 01:12:15]} {[%emt 00:02:55]} 17. Nf4 {[%clk 00:43:34]}
{[%emt 00:00:36]} Qc2 {[%clk 00:59:54]} {[%emt 00:12:52]} 18. O-O {[%clk
00:17:17]} {[%emt 00:26:46]} d2 {[%clk 00:59:52]} {[%emt 00:00:32]} 19. Bxd2
{[%clk 00:16:19]} {[%emt 00:01:28]} Qxd2 {[%clk 01:00:15]} {[%emt 00:00:06]} 20.
Rfd1 {[%clk 00:15:58]} {[%emt 00:00:51]} Qe3+ {[%clk 01:00:27]} {[%emt
00:00:19]} 21. Kh1 {[%clk 00:15:22]} {[%emt 00:01:06]} Be5 {[%clk 00:58:02]}
{[%emt 00:02:54]} 22. Qg5+ {[%clk 00:13:00]} {[%emt 00:02:51]} Ke8 {[%clk
00:57:52]} {[%emt 00:00:41]} 23. Nxe6 {[%clk 00:13:00]} {[%emt 00:00:29]} Qxg5
{[%clk 00:58:15]} {[%emt 00:00:08]} 24. Nxg5 {[%clk 00:13:25]} {[%emt
00:00:05]} Ke7 {[%clk 00:58:11]} {[%emt 00:00:34]} 25. Nxf7 {[%clk 00:12:28]}
{[%emt 00:01:26]} Rf8 {[%clk 00:58:40]} {[%emt 00:00:01]} 26. Ng5 {[%clk
00:12:46]} {[%emt 00:00:12]} Nf6 {[%clk 00:58:43]} {[%emt 00:00:27]} 27. Rd3
{[%clk 00:11:30]} {[%emt 00:01:46]} h6 {[%clk 00:59:05]} {[%emt 00:00:08]} 28.
Nh3 {[%clk 00:11:28]} {[%emt 00:00:31]} Bxh3 {[%clk 00:59:34]} {[%emt
00:00:02]} 29. gxh3 {[%clk 00:11:56]} {[%emt 00:00:02]} Nh5 {[%clk 00:59:32]}
{[%emt 00:00:32]} 30. h4 {[%clk 00:08:39]} {[%emt 00:03:47]} Nf4 {[%clk
00:59:30]} {[%emt 00:00:32]} 31. Rd2 {[%clk 00:06:33]} {[%emt 00:02:35]} Rf6
{[%clk 00:59:58]} {[%emt 00:00:03]} 0-1

[Event "Campeonato de Aragón Individual Absoluto 2022"]
[Site "Zaragoza, Spain"]
[Date "2022.08.28"]
[Round "2.5"]
[White "Ereza Vizcarra, Fernando"]
[Black "Nedov, Octavian"]
[Result "1-0"]
[TimeControl "90 min + 30 sg"]
[WhiteElo "2132"]
[BlackElo "1671"]

1. d4 {[%clk 01:30:57]} {[%emt 00:00:01]} Nf6 {[%clk 01:30:39]} {[%emt
00:00:21]} 2. Nf3 {[%clk 01:30:50]} {[%emt 00:00:07]} b6 {[%clk 01:30:16]}
{[%emt 00:00:54]} 3. g3 {[%clk 01:31:10]} {[%emt 00:00:39]} Bb7 {[%clk
01:28:54]} {[%emt 00:01:51]} 4. Bg2 {[%clk 01:31:10]} {[%emt 00:00:30]} e6
{[%clk 01:26:22]} {[%emt 00:03:02]} 5. O-O {[%clk 01:31:32]} {[%emt 00:00:08]}
c5 {[%clk 01:23:54]} {[%emt 00:02:58]} 6. e3 {[%clk 01:28:08]} {[%emt
00:03:54]} d6 {[%clk 01:23:11]} {[%emt 00:01:13]} 7. c4 {[%clk 01:28:34]}
{[%emt 00:00:05]} Be7 {[%clk 01:17:09]} {[%emt 00:06:31]} 8. Nc3 {[%clk
01:29:00]} {[%emt 00:00:04]} O-O {[%clk 01:10:28]} {[%emt 00:01:22]} 9. Qc2
{[%clk 01:29:26]} {[%emt 00:05:53]} Qc7 {[%clk 01:06:32]} {[%emt 00:04:26]} 10.
b3 {[%clk 01:29:40]} {[%emt 00:00:16]} a6 {[%clk 01:06:55]} {[%emt 00:00:07]}
11. Rd1 {[%clk 01:29:52]} {[%emt 00:00:17]} cxd4 {[%clk 01:06:24]} {[%emt
00:01:01]} 12. exd4 {[%clk 01:30:18]} {[%emt 00:00:05]} Rc8 {[%clk 01:06:40]}
{[%emt 00:00:14]} 13. a4 {[%clk 01:23:31]} {[%emt 00:07:17]} h6 {[%clk
01:03:40]} {[%emt 00:03:29]} 14. Bf4 {[%clk 01:20:08]} {[%emt 00:03:53]} Nh5
{[%clk 01:00:51]} {[%emt 00:03:19]} 15. Be3 {[%clk 01:19:55]} {[%emt 00:00:44]}
Nf6 {[%clk 01:01:15]} {[%emt 00:00:06]} 16. h3 {[%clk 01:19:57]} {[%emt
00:00:27]} Nc6 {[%clk 01:00:55]} {[%emt 00:00:50]} 17. Rac1 {[%clk 01:20:22]}
{[%emt 00:00:06]} Rab8 {[%clk 01:00:10]} {[%emt 00:01:15]} 18. Qe2 {[%clk
01:15:58]} {[%emt 00:04:54]} Na5 {[%clk 00:56:54]} {[%emt 00:03:46]} 19. Qb2
{[%clk 01:16:02]} {[%emt 00:00:26]} Bf8 {[%clk 00:56:27]} {[%emt 00:00:56]} 20.
d5 {[%clk 01:11:35]} {[%emt 00:04:57]} Be7 {[%clk 00:51:38]} {[%emt 00:05:19]}
21. Nd2 {[%clk 00:55:30]} {[%emt 00:16:36]} Ba8 {[%clk 00:48:18]} {[%emt
00:03:50]} 22. Qb1 {[%clk 00:51:39]} {[%emt 00:04:22]} Qd8 {[%clk 00:45:43]}
{[%emt 00:03:05]} 23. Qd3 {[%clk 00:46:20]} {[%emt 00:05:49]} Nd7 {[%clk
00:41:55]} {[%emt 00:04:19]} 24. Qe2 {[%clk 00:36:00]} {[%emt 00:10:51]} Bf6
{[%clk 00:38:08]} {[%emt 00:04:16]} 25. b4 {[%clk 00:22:44]} {[%emt 00:13:47]}
Nb7 {[%clk 00:29:51]} {[%emt 00:08:47]} 26. dxe6 {[%clk 00:21:29]} {[%emt
00:01:45]} fxe6 {[%clk 00:29:41]} {[%emt 00:00:39]} 27. Nde4 {[%clk 00:21:54]}
{[%emt 00:00:05]} Qc7 {[%clk 00:19:34]} {[%emt 00:10:37]} 28. Qg4 {[%clk
00:18:55]} {[%emt 00:03:29]} Bxc3 {[%clk 00:16:26]} {[%emt 00:03:38]} 29. Qxe6+
{[%clk 00:19:18]} {[%emt 00:00:08]} Kh8 {[%clk 00:16:28]} {[%emt 00:00:28]} 30.
Rxc3 {[%clk 00:19:25]} {[%emt 00:00:23]} Re8 {[%clk 00:16:15]} {[%emt
00:00:42]} 31. Qg4 {[%clk 00:18:05]} {[%emt 00:01:51]} Ne5 {[%clk 00:16:20]}
{[%emt 00:00:25]} 32. Qe2 {[%clk 00:18:34]} Re6 {[%clk 00:15:44]} {[%emt
00:01:06]} 33. f4 {[%clk 00:17:28]} {[%emt 00:01:37]} Nf7 {[%clk 00:15:08]}
{[%emt 00:01:06]} 34. f5 {[%emt 00:00:34]} Ree8 {[%clk 00:15:05]} {[%emt
00:00:26]} 35. f6 {[%clk 00:17:47]} {[%emt 00:00:15]} g6 {[%clk 00:15:04]}
{[%emt 00:00:31]} 36. Qd2 {[%clk 00:17:22]} {[%emt 00:00:54]} Kh7 {[%clk
00:15:05]} {[%emt 00:00:29]} 37. Bf4 {[%clk 00:16:51]} {[%emt 00:01:02]} Rbd8
{[%emt 00:00:11]} 38. h4 {[%clk 00:15:57]} {[%emt 00:01:23]} Qd7 {[%clk
00:15:48]} {[%emt 00:00:07]} 39. Qc2 {[%clk 00:15:11]} {[%emt 00:01:16]} Qf5
{[%clk 00:15:00]} {[%emt 00:01:18]} 40. Rf1 {[%clk 00:14:32]} {[%emt 00:01:09]}
Qe6 {[%clk 00:14:54]} {[%emt 00:00:36]} 41. h5 {[%clk 00:14:45]} {[%emt
00:00:18]} Rg8 {[%clk 00:14:29]} {[%emt 00:00:54]} 42. Kh2 {[%clk 00:13:56]}
{[%emt 00:01:19]} Qg4 {[%clk 00:14:43]} {[%emt 00:00:14]} 43. Bh3 {[%clk
00:13:01]} {[%emt 00:01:26]} Qxh5 {[%clk 00:14:51]} {[%emt 00:00:22]} 44. g4
{[%clk 00:13:27]} {[%emt 00:00:04]} 1-0

[Event "Campeonato de Aragón Individual Absoluto 2022"]
[Site "Zaragoza, Spain"]
[Date "2022.08.29"]
[Round "3.1"]
[White "Munoz Valles, Jorge"]
[Black "Garza Marco, Sergio"]
[Result "0-1"]
[TimeControl "90 min + 30 sg"]
[WhiteElo "1911"]
[BlackElo "2408"]

1. d4 {[%clk 01:30:58]} {[%emt 00:00:01]} g6 {[%clk 01:30:55]} {[%emt
00:00:06]} 2. c4 {[%clk 01:31:24]} {[%emt 00:00:04]} Bg7 {[%clk 01:31:21]}
{[%emt 00:00:03]} 3. Nc3 {[%clk 01:31:49]} {[%emt 00:00:05]} c5 {[%clk
01:31:46]} {[%emt 00:00:05]} 4. d5 {[%clk 01:32:09]} {[%emt 00:00:10]} Bxc3+
{[%clk 01:32:10]} {[%emt 00:00:06]} 5. bxc3 {[%clk 01:32:34]} {[%emt 00:00:05]}
f5 {[%clk 01:32:35]} {[%emt 00:00:05]} 6. g3 {[%clk 01:32:15]} {[%emt
00:00:48]} Nf6 {[%clk 01:32:49]} {[%emt 00:00:15]} 7. Bg2 {[%clk 01:32:34]}
{[%emt 00:00:12]} Qa5 {[%clk 01:33:06]} {[%emt 00:00:13]} 8. Qc2 {[%clk
01:29:46]} {[%emt 00:03:18]} d6 {[%clk 01:33:29]} {[%emt 00:00:07]} 9. Bd2
{[%clk 01:25:20]} {[%emt 00:04:56]} Nbd7 {[%clk 01:33:45]} {[%emt 00:00:14]} 10.
Nf3 {[%clk 01:25:39]} {[%emt 00:00:12]} Nb6 {[%clk 01:34:04]} {[%emt 00:00:11]}
11. Qd3 {[%clk 01:19:35]} {[%emt 00:06:34]} Qa4 {[%clk 01:33:34]} {[%emt
00:00:59]} 12. Bg5 {[%clk 01:14:00]} {[%emt 00:06:05]} Ne4 {[%clk 01:27:05]}
{[%emt 00:06:59]} 13. O-O {[%clk 01:06:29]} {[%emt 00:08:01]} Qxc4 {[%clk
01:26:38]} {[%emt 00:00:57]} 14. Qxc4 {[%clk 01:02:46]} {[%emt 00:04:13]} Nxc4
{[%clk 01:27:03]} {[%emt 00:00:05]} 15. Rfc1 {[%clk 01:02:47]} {[%emt
00:00:29]} b6 {[%clk 01:20:18]} {[%emt 00:07:15]} 16. Bf1 {[%clk 00:55:50]}
{[%emt 00:07:27]} h6 {[%clk 01:17:52]} {[%emt 00:02:57]} 17. Be3 {[%clk
00:55:55]} {[%emt 00:00:25]} Bb7 {[%clk 01:18:04]} {[%emt 00:00:18]} 18. Rd1
{[%clk 00:55:44]} {[%emt 00:00:41]} Nxc3 {[%clk 01:17:08]} {[%emt 00:01:26]} 19.
Rdc1 {[%clk 00:46:54]} {[%emt 00:09:20]} Nxe3 {[%clk 01:17:29]} {[%emt
00:00:09]} 20. Rxc3 {[%clk 00:46:58]} {[%emt 00:00:26]} Nxd5 {[%clk 01:16:38]}
{[%emt 00:01:21]} 21. Rb3 {[%clk 00:46:40]} {[%emt 00:00:48]} e6 {[%clk
01:14:39]} {[%emt 00:02:30]} 22. Nd2 {[%clk 00:45:22]} {[%emt 00:01:48]} O-O-O
{[%clk 01:12:31]} {[%emt 00:02:38]} 23. a4 {[%clk 00:45:08]} {[%emt 00:00:44]}
Nb4 {[%clk 01:12:28]} {[%emt 00:00:33]} 24. a5 {[%clk 00:44:16]} {[%emt
00:01:23]} b5 {[%clk 01:10:15]} {[%emt 00:02:43]} 25. a6 {[%clk 00:42:46]}
{[%emt 00:02:00]} Bd5 {[%clk 01:10:35]} {[%emt 00:00:09]} 26. Rb2 {[%clk
00:42:28]} {[%emt 00:00:48]} Kc7 {[%clk 01:10:54]} {[%emt 00:00:11]} 27. e4
{[%clk 00:38:04]} {[%emt 00:04:54]} Bc6 {[%clk 01:10:27]} {[%emt 00:00:57]} 28.
e5 {[%clk 00:36:49]} {[%emt 00:01:45]} dxe5 {[%clk 01:06:20]} {[%emt 00:04:37]}
29. Nb3 {[%clk 00:36:57]} {[%emt 00:00:22]} Kb6 {[%clk 01:03:34]} {[%emt
00:03:17]} 30. Nxc5 {[%clk 00:36:36]} {[%emt 00:00:50]} Kxc5 {[%clk 01:03:58]}
{[%emt 00:00:06]} 31. Rc1+ {[%clk 00:36:55]} {[%emt 00:00:11]} Kb6 {[%clk
01:04:23]} {[%emt 00:00:05]} 32. Rxb4 {[%clk 00:37:19]} {[%emt 00:00:06]} Rd5
{[%clk 00:59:03]} {[%emt 00:05:49]} 33. Bc4 {[%clk 00:30:28]} {[%emt 00:07:21]}
Rd4 {[%clk 00:56:49]} {[%emt 00:02:45]} 34. Rbb1 {[%clk 00:30:48]} {[%emt
00:00:10]} Bd7 {[%clk 00:56:10]} {[%emt 00:01:09]} 35. Bf1 {[%clk 00:28:44]}
{[%emt 00:02:34]} Rd8 {[%clk 00:55:16]} {[%emt 00:01:23]} 36. Bg2 {[%clk
00:25:33]} {[%emt 00:03:41]} e4 {[%clk 00:55:39]} {[%emt 00:00:07]} 37. Bf1
{[%clk 00:25:46]} {[%emt 00:00:17]} Bc6 {[%clk 00:55:34]} {[%emt 00:00:35]} 38.
Be2 {[%clk 00:25:54]} {[%emt 00:00:22]} R8d6 {[%clk 00:55:02]} {[%emt
00:01:02]} 39. Ra1 {[%clk 00:24:27]} {[%emt 00:01:58]} Rd2 {[%clk 00:55:20]}
{[%emt 00:00:11]} 40. Kf1 {[%clk 00:24:05]} {[%emt 00:00:51]} Rb2 {[%clk
00:55:45]} {[%emt 00:00:06]} 0-1